[Event "FIDE WSTC Open 65 2025"]
[Site "Prague"]
[Date "2025.02.18"]
[Round "2.33"]
[White "Hugentobler, Patrick"]
[Black "Urban, Zdenek"]
[Result "1/2-1/2"]
[Annotator "ChessBase"]
[ECO "C41"]
[WhiteElo "2242"]
[BlackElo "2155"]
[PlyCount "62"]
[EventDate "2025.02.17"]
[EventType "team-tourn"]
[EventCountry "CZE"]
[SourceTitle "playchess.com"]
[Source "ChessBase"]
[SourceQuality "1"]
[TimeControl "40/5400+30:1800+30"]

1. e4 {[%emt 0:00:04]} d6 {[%emt 0:00:06]} 2. d4 {[%emt 0:00:09]} Nf6 {[%emt 0:00:05]} 3. Nc3 {[%emt 0:00:08]} e5 {[%emt 0:00:04]} 4. Nf3 {[%emt 0:00:42]} Nbd7 {[%emt 0:00:03]} 5. Rg1 {[%emt 0:00:32]} c6 {[%emt 0:06:59]} 6. g4 {[%emt 0:00:44]} g6 {[%emt 0:02:29]} 7. Be3 {[%emt 0:02:04]} h5 {[%emt 0:01:18]} 8. g5 {[%emt 0:19:39]} Ng8 {[%emt 0:03:15]} 9. Qd2 {[%emt 0:02:35]} Ne7 {[%emt 0:03:24]} 10. O-O-O {[%emt 0:04:35]} Qc7 {[%emt 0:00:10]} 11. Nh4 {[%emt 0:03:27]} Nb6 {[%emt 0:08:04]} 12. f4 {[%emt 0:12:42]} Bg4 {[%emt 0:02:04]} 13. Be2 {[%emt 0:00:07]} Bg7 {[%emt 0:02:15]} 14. Rgf1 {[%emt 0:05:15]} Bxe2 {[%emt 0:09:48]} 15. Qxe2 {[%emt 0:00:13]} exd4 {[%emt 0:00:11]} 16. Bxd4 {[%emt 0:00:12]} Bxd4 {[%emt 0:00:35]} 17. Rxd4 {[%emt 0:00:03]} O-O {[%emt 0:01:15]} 18. f5 {[%emt 0:07:31]} Rae8 {[%emt 0:01:42]} 19. fxg6 {[%emt 0:06:42]} fxg6 {[%emt 0:00:07]} 20. Rf6 {[%emt 0:00:07]} Rxf6 {[%emt 0:00:50]} 21. gxf6 {[%emt 0:00:05]} Ned5 {[%emt 0:10:22]} 22. Nxg6 {[%emt 0:04:28]} Nxf6 {[%emt 0:00:30]} 23. Nf4 {[%emt 0:09:30]} Qg7 {[%emt 0:19:33]} 24. Rxd6 {[%emt 0:02:00]} Qg5 {[%emt 0:00:23]} 25. Qf1 {[%emt 0:05:21]} Kh7 {[%emt 0:05:52]} 26. Rd2 {[%emt 0:01:40]} Nxe4 {[%emt 0:01:24]} 27. Nxe4 {[%emt 0:01:26]} Rxe4 {[%emt 0:00:16]} 28. Nh3 {[%emt 0:00:21]} Qe7 {[%emt 0:01:41]} 29. Qf5+ {[%emt 0:01:45]} Kh6 {[%emt 0:01:10]} 30. Rd1 {[%emt 0:01:24]} Nd5 {[%emt 0:00:46]} 31. Qc8 {[%emt 0:02:00]} Re1 {[%emt 0:02:44]} 1/2-1/2

[Event "FIDE WSTC Open 65 2025"]
[Site "Prague"]
[Date "2025.02.18"]
[Round "2.34"]
[White "Sejkora, Vlastimil"]
[Black "Huss, Andreas"]
[Result "0-1"]
[Annotator "ChessBase"]
[ECO "A17"]
[WhiteElo "2121"]
[BlackElo "2202"]
[PlyCount "118"]
[EventDate "2025.02.17"]
[EventType "team-tourn"]
[EventCountry "CZE"]
[SourceTitle "playchess.com"]
[Source "ChessBase"]
[SourceQuality "1"]
[TimeControl "40/5400+30:1800+30"]

1. c4 {[%emt 0:00:09]} e6 {[%emt 0:00:06]} 2. Nc3 {[%emt 0:00:07]} Bb4 {[%emt 0:00:05]} 3. g3 {[%emt 0:01:23]} Nf6 {[%emt 0:00:44]} 4. Bg2 {[%emt 0:00:16]} d5 {[%emt 0:00:22]} 5. Nf3 {[%emt 0:02:37]} O-O {[%emt 0:02:57]} 6. Qb3 {[%emt 0:02:51]} Nc6 {[%emt 0:04:56]} 7. cxd5 {[%emt 0:05:40]} exd5 {[%emt 0:00:28]} 8. d4 {[%emt 0:02:48]} Bxc3+ {[%emt 0:09:41]} 9. Qxc3 {[%emt 0:03:49]} Ne4 {[%emt 0:01:36]} 10. Qa3 {[%emt 0:00:02]} Bg4 {[%emt 0:08:02]} 11. O-O {[%emt 0:02:05]} Bxf3 {[%emt 0:06:08]} 12. exf3 {[%emt 0:00:16]} Nd6 {[%emt 0:00:43]} 13. Qd3 {[%emt 0:04:20]} Qf6 {[%emt 0:08:01]} 14. Be3 {[%emt 0:03:15]} a5 {[%emt 0:09:42]} 15. Rac1 {[%emt 0:12:10]} Nb4 {[%emt 0:02:15]} 16. Qb1 {[%emt 0:00:48]} c6 {[%emt 0:00:30]} 17. b3 {[%emt 0:01:53]} Rfd8 {[%emt 0:05:11]} 18. a3 {[%emt 0:03:21]} Na6 {[%emt 0:00:28]} 19. Qb2 {[%emt 0:00:40]} Nb5 {[%emt 0:03:59]} 20. a4 {[%emt 0:01:06]} Nd6 {[%emt 0:00:28]} 21. Qd2 {[%emt 0:00:11]} Nf5 {[%emt 0:04:20]} 22. Rfd1 {[%emt 0:10:32]} Re8 {[%emt 0:05:18]} 23. Bg5 {[%emt 0:09:31]} Qg6 {[%emt 0:00:22]} 24. Bf4 {[%emt 0:00:01]} b6 {[%emt 0:08:33]} 25. h4 {[%emt 0:07:07]} h5 {[%emt 0:02:47]} 26. Kh2 {[%emt 0:00:13]} Ra7 {[%emt 0:01:53]} 27. Bg5 {[%emt 0:09:46]} Nb4 {[%emt 0:01:13]} 28. Re1 {[%emt 0:02:39]} f6 {[%emt 0:01:48]} 29. Rxe8+ {[%emt 0:00:41]} Qxe8 {[%emt 0:00:03]} 30. Re1 {[%emt 0:00:12]} Re7 {[%emt 0:01:41]} 31. Rxe7 {[%emt 0:03:45]} Qxe7 {[%emt 0:00:04]} 32. Bf4 {[%emt 0:00:14]} c5 {[%emt 0:02:11]} 33. Be3 {[%emt 0:01:12]} cxd4 {[%emt 0:03:11]} 34. Bxd4 {[%emt 0:00:08]} Nxd4 {[%emt 0:00:24]} 35. Qxd4 {[%emt 0:00:02]} Qc5 {[%emt 0:00:21]} 36. Qd2 {[%emt 0:03:53]} d4 {[%emt 0:00:47]} 37. Bf1 {[%emt 0:00:29]} Kh8 {[%emt 0:02:14]} 38. Bc4 {[%emt 0:00:21]} d3 {[%emt 0:00:50]} 39. Kg2 {[%emt 0:01:54]} Qd4 {[%emt 0:02:32]} 40. Qe1 {[%emt 0:02:33]} Qd7 {[%emt 0:00:45]} 41. Qd2 {[%emt 0:30:41]} Kh7 {[%emt 0:30:28]} 42. Kf1 {[%emt 0:02:49]} Qd4 {[%emt 0:00:00]} 43. Qe3 {[%emt 0:00:00]} Qd7 {[%emt 0:00:00]} 44. Qd2 {[%emt 0:00:00]} g6 {[%emt 0:00:00]} 45. Ke1 {[%emt 0:00:00]} Qf5 {[%emt 0:00:00]} 46. Qd1 {[%emt 0:00:00]} Qe5+ {[%emt 0:00:00]} 47. Kd2 {[%emt 0:00:00]} Qd4 {[%emt 0:00:00]} 48. Qf1 {[%emt 0:00:00]} Qb2+ {[%emt 0:00:00]} 49. Ke3 {[%emt 0:00:00]} Qe5+ {[%emt 0:00:00]} 50. Kd2 {[%emt 0:00:00]} Qb2+ {[%emt 0:00:00]} 51. Ke3 {[%emt 0:00:00]} Qc3 {[%emt 0:00:00]} 52. f4 {[%emt 0:00:00]} Nc2+ {[%emt 0:00:00]} 53. Ke4 {[%emt 0:00:00]} d2 {[%emt 0:00:00]} 54. Qd1 {[%emt 0:00:00]} f5+ {[%emt 0:00:35]} 55. Kd5 {[%emt 0:00:00]} Qd4+ {[%emt 0:02:55]} 56. Ke6 {[%emt 0:00:00]} Qe4+ {[%emt 0:03:15]} 57. Kf6 {[%emt 0:00:00]} Qe1 {[%emt 0:00:42]} 58. Qxc2 {[%emt 0:00:00]} d1=Q {[%emt 0:00:35]} 59. Bg8+ {[%emt 0:00:00]} Kh6 {[%emt 0:00:11]} 0-1

[Event "FIDE WSTC Open 65 2025"]
[Site "Prague"]
[Date "2025.02.18"]
[Round "2.35"]
[White "Vucenovic, Dragomir"]
[Black "Mlynek, Petr"]
[Result "1-0"]
[Annotator "NA"]
[ECO "D02"]
[WhiteElo "2128"]
[BlackElo "2023"]
[PlyCount "73"]
[EventDate "2025.02.17"]
[EventType "team-tourn"]
[EventCountry "CZE"]
[SourceTitle "playchess.com"]
[Source "ChessBase"]
[SourceQuality "1"]
[TimeControl "40/5400+30:1800+30"]

1. d4 {[%emt 0:00:04]} d5 {[%emt 0:00:14]} 2. Bf4 {[%emt 0:00:18]} Nf6 {[%emt 0:00:23]} 3. e3 {[%emt 0:00:19]} e6 {[%emt 0:00:50]} 4. Nd2 {[%emt 0:00:47]} c5 {[%emt 0:00:25]} 5. Ngf3 {[%emt 0:00:57]} Nc6 {[%emt 0:00:34]} 6. c3 {[%emt 0:01:29]} Bd6 {[%emt 0:00:55]} 7. Bg3 {[%emt 0:06:07]} O-O {[%emt 0:03:33]} 8. Bd3 {[%emt 0:02:59]} Re8 {[%emt 0:02:22]} 9. Ne5 {[%emt 0:01:35]} cxd4 {[%emt 0:05:25]} 10. Nxc6 {[%emt 0:02:19]} bxc6 {[%emt 0:00:14]} 11. cxd4 {[%emt 0:00:40]} e5 {[%emt 0:09:18]} 12. dxe5 {[%emt 0:01:45]} Bxe5 {[%emt 0:00:08]} 13. Bxe5 {[%emt 0:03:42]} Rxe5 {[%emt 0:00:09]} 14. Nf3 {[%emt 0:01:19]} Qa5+ {[%emt 0:05:52]} 15. Qd2 {[%emt 0:01:08]} Qxd2+ {[%emt 0:00:12]} 16. Kxd2 {[%emt 0:00:01]} Ne4+ {[%emt 0:01:30]} 17. Bxe4 {[%emt 0:02:39]} Rxe4 {[%emt 0:00:08]} 18. Rhc1 {[%emt 0:01:08]} Bd7 {[%emt 0:01:40]} 19. Nd4 {[%emt 0:02:02]} Rc8 {[%emt 0:01:01]} 20. Rc5 {[%emt 0:00:12]} Rg4 {[%emt 0:02:06]} 21. g3 {[%emt 0:00:55]} Rg6 {[%emt 0:00:43]} 22. Rac1 {[%emt 0:01:36]} Kf8 {[%emt 0:03:57]} 23. b4 {[%emt 0:09:44]} Rb8 {[%emt 0:01:09]} 24. a3 {[%emt 0:32:43]} Rb6 {[%emt 0:01:52]} 25. b5 {[%emt 0:03:19]} cxb5 {[%emt 0:03:11]} 26. Rc7 {[%emt 0:00:03]} Rgd6 {[%emt 0:03:29]} 27. Rxa7 {[%emt 0:00:15]} g6 {[%emt 0:11:27]} 28. Rcc7 {[%emt 0:03:27]} Ke8 {[%emt 0:01:05]} 29. Kc3 {[%emt 0:01:13]} Rb8 {[%emt 0:06:55]} 30. Kb4 {[%emt 0:00:28]} Rc8 {[%emt 0:00:54]} 31. Nxb5 {[%emt 0:02:54]} Rxc7 {[%emt 0:02:21]} 32. Nxd6+ {[%emt 0:00:26]} Kd8 {[%emt 0:00:45]} 33. Rxc7 {[%emt 0:00:32]} Kxc7 {[%emt 0:00:07]} 34. Nxf7 {[%emt 0:00:11]} Kb6 {[%emt 0:01:40]} 35. a4 {[%emt 0:00:32]} Ka6 {[%emt 0:00:26]} 36. Ne5 {[%emt 0:01:18]} Be8 {[%emt 0:01:12]} 37. Nd3 {[%emt 0:00:32]} 1-0

[Event "FIDE WSTC Open 65 2025"]
[Site "Prague"]
[Date "2025.02.18"]
[Round "2.36"]
[White "Papay, Jindrich"]
[Black "Hohler, Peter"]
[Result "1/2-1/2"]
[Annotator "NA"]
[ECO "A03"]
[WhiteElo "1937"]
[BlackElo "2045"]
[PlyCount "70"]
[EventDate "2025.02.17"]
[EventType "team-tourn"]
[EventCountry "CZE"]
[SourceTitle "playchess.com"]
[Source "ChessBase"]
[SourceQuality "1"]
[TimeControl "40/5400+30:1800+30"]

1. f4 {[%emt 0:00:09]} d5 {[%emt 0:00:35]} 2. Nf3 {[%emt 0:00:09]} g6 {[%emt 0:01:23]} 3. g3 {[%emt 0:00:25]} Bg7 {[%emt 0:00:01]} 4. Bg2 {[%emt 0:00:11]} c5 {[%emt 0:01:58]} 5. c3 {[%emt 0:01:08]} Nc6 {[%emt 0:01:21]} 6. O-O {[%emt 0:02:26]} Nf6 {[%emt 0:00:13]} 7. d3 {[%emt 0:01:42]} O-O {[%emt 0:00:12]} 8. Qc2 {[%emt 0:04:12]} d4 {[%emt 0:16:06]} 9. e4 {[%emt 0:05:51]} dxe3 {[%emt 0:00:29]} 10. Bxe3 {[%emt 0:00:04]} Bf5 {[%emt 0:07:11]} 11. Rd1 {[%emt 0:00:06]} c4 {[%emt 0:02:38]} 12. Ne1 {[%emt 0:00:03]} Ng4 {[%emt 0:05:13]} 13. Qe2 {[%emt 0:05:04]} Nxe3 {[%emt 0:08:15]} 14. Qxe3 {[%emt 0:00:03]} cxd3 {[%emt 0:00:51]} 15. Bxc6 {[%emt 0:08:49]} bxc6 {[%emt 0:00:21]} 16. Nxd3 {[%emt 0:00:20]} Qb6 {[%emt 0:04:51]} 17. Qxb6 {[%emt 0:13:33]} axb6 {[%emt 0:00:02]} 18. Ne5 {[%emt 0:00:36]} Bxe5 {[%emt 0:04:18]} 19. fxe5 {[%emt 0:00:02]} Ra5 {[%emt 0:01:05]} 20. Nd2 {[%emt 0:02:34]} Be6 {[%emt 0:03:52]} 21. Nb3 {[%emt 0:06:27]} Bxb3 {[%emt 0:14:39]} 22. axb3 {[%emt 0:00:03]} Rfa8 {[%emt 0:04:31]} 23. Rxa5 {[%emt 0:01:52]} Rxa5 {[%emt 0:00:02]} 24. Re1 {[%emt 0:00:42]} Kf8 {[%emt 0:03:27]} 25. Kf2 {[%emt 0:01:21]} Ke8 {[%emt 0:02:27]} 26. c4 {[%emt 0:11:10]} Kd7 {[%emt 0:01:59]} 27. e6+ {[%emt 0:00:41]} fxe6 {[%emt 0:00:20]} 28. Rd1+ {[%emt 0:00:05]} Ke8 {[%emt 0:02:21]} 29. Ke3 {[%emt 0:01:02]} Ra2 {[%emt 0:06:29]} 30. Rd2 {[%emt 0:00:13]} Ra8 {[%emt 0:00:15]} 31. Ke4 {[%emt 0:06:31]} Ra5 {[%emt 0:00:21]} 32. Kd4 {[%emt 0:05:18]} Rf5 {[%emt 0:02:52]} 33. Ke4 {[%emt 0:07:59]} Ra5 {[%emt 0:01:51]} 34. Kd4 {[%emt 0:00:52]} Rf5 {[%emt 0:00:23]} 35. Ke4 {[%emt 0:00:09]} Ra5 {[%emt 0:00:09]} 1/2-1/2

[Event "FIDE WSTC Open 65 2025"]
[Site "Prague"]
[Date "2025.02.18"]
[Round "2.37"]
[White "Jurek, Josef"]
[Black "Pribyl, Josef"]
[Result "1/2-1/2"]
[Annotator "ChessBase"]
[ECO "D36"]
[WhiteElo "2160"]
[BlackElo "2184"]
[PlyCount "27"]
[EventDate "2025.02.17"]
[EventType "team-tourn"]
[EventCountry "CZE"]
[SourceTitle "playchess.com"]
[Source "ChessBase"]
[SourceQuality "1"]
[TimeControl "40/5400+30:1800+30"]

1. d4 {[%emt 0:00:08]} Nf6 {[%emt 0:00:19]} 2. c4 {[%emt 0:00:18]} e6 {[%emt 0:00:30]} 3. Nc3 {[%emt 0:00:12]} d5 {[%emt 0:00:24]} 4. cxd5 {[%emt 0:00:14]} exd5 {[%emt 0:00:19]} 5. Bg5 {[%emt 0:00:19]} Be7 {[%emt 0:00:31]} 6. e3 {[%emt 0:00:18]} h6 {[%emt 0:01:41]} 7. Bh4 {[%emt 0:00:40]} c6 {[%emt 0:04:35]} 8. Qc2 {[%emt 0:01:05]} Nbd7 {[%emt 0:02:08]} 9. Bd3 {[%emt 0:00:44]} O-O {[%emt 0:01:13]} 10. Nge2 {[%emt 0:00:27]} Re8 {[%emt 0:00:34]} 11. O-O {[%emt 0:03:24]} Ne4 {[%emt 0:00:29]} 12. Bg3 {[%emt 0:06:35]} Nxg3 {[%emt 0:00:50]} 13. Nxg3 {[%emt 0:04:15]} Nf6 {[%emt 0:00:25]} 14. Rab1 {[%emt 0:07:50]} 1/2-1/2

[Event "FIDE WSTC Open 65 2025"]
[Site "Prague"]
[Date "2025.02.18"]
[Round "2.38"]
[White "Babula, Milan"]
[Black "Netusil, Miloslav"]
[Result "1/2-1/2"]
[Annotator "ChessBase"]
[ECO "C10"]
[WhiteElo "2077"]
[BlackElo "2121"]
[PlyCount "95"]
[EventDate "2025.02.17"]
[EventType "team-tourn"]
[EventCountry "CZE"]
[SourceTitle "playchess.com"]
[Source "ChessBase"]
[SourceQuality "1"]
[TimeControl "40/5400+30:1800+30"]

1. e4 {[%emt 0:00:02]} e6 {[%emt 0:00:11]} 2. d4 {[%emt 0:00:05]} d5 {[%emt 0:00:10]} 3. Nc3 {[%emt 0:00:04]} dxe4 {[%emt 0:00:49]} 4. Nxe4 {[%emt 0:00:03]} Bd7 {[%emt 0:00:13]} 5. Nf3 {[%emt 0:01:12]} Bc6 {[%emt 0:00:07]} 6. Bd3 {[%emt 0:00:37]} Nd7 {[%emt 0:00:08]} 7. O-O {[%emt 0:01:18]} Ngf6 {[%emt 0:00:09]} 8. Qe2 {[%emt 0:01:16]} Nxe4 {[%emt 0:09:08]} 9. Bxe4 {[%emt 0:00:03]} Bxe4 {[%emt 0:00:09]} 10. Qxe4 {[%emt 0:00:03]} c6 {[%emt 0:00:08]} 11. Bf4 {[%emt 0:02:50]} Be7 {[%emt 0:06:44]} 12. c4 {[%emt 0:05:59]} O-O {[%emt 0:00:41]} 13. Rad1 {[%emt 0:01:53]} Qa5 {[%emt 0:08:39]} 14. Qc2 {[%emt 0:04:16]} Rac8 {[%emt 0:08:01]} 15. b3 {[%emt 0:08:14]} Rfe8 {[%emt 0:01:19]} 16. Rfe1 {[%emt 0:03:16]} Bf6 {[%emt 0:03:02]} 17. Re3 {[%emt 0:09:23]} c5 {[%emt 0:12:14]} 18. d5 {[%emt 0:08:36]} exd5 {[%emt 0:02:07]} 19. cxd5 {[%emt 0:01:21]} Rxe3 {[%emt 0:04:24]} 20. fxe3 {[%emt 0:00:44]} c4 {[%emt 0:06:14]} 21. bxc4 {[%emt 0:17:20]} g6 {[%emt 0:00:08]} 22. Qb3 {[%emt 0:10:27]} Nc5 {[%emt 0:04:02]} 23. Qb5 {[%emt 0:00:51]} Qxa2 {[%emt 0:00:17]} 24. d6 {[%emt 0:00:27]} Qc2 {[%emt 0:04:39]} 25. Rf1 {[%emt 0:02:58]} b6 {[%emt 0:04:11]} 26. Be5 {[%emt 0:08:42]} Qf5 {[%emt 0:00:35]} 27. Bd4 {[%emt 0:05:16]} Qe6 {[%emt 0:00:08]} 28. Qb2 {[%emt 0:05:47]} Nd7 {[%emt 0:07:30]} 29. Bxf6 {[%emt 0:00:35]} Nxf6 {[%emt 0:00:06]} 30. Qe5 {[%emt 0:01:02]} Nd7 {[%emt 0:09:08]} 31. Qxe6 {[%emt 0:00:01]} fxe6 {[%emt 0:00:06]} 32. Ng5 {[%emt 0:00:04]} Rxc4 {[%emt 0:01:22]} 33. Rf7 {[%emt 0:00:30]} h6 {[%emt 0:07:21]} 34. Rxd7 {[%emt 0:00:10]} Rc1+ {[%emt 0:00:05]} 35. Kf2 {[%emt 0:00:03]} hxg5 {[%emt 0:00:05]} 36. Rxa7 {[%emt 0:00:16]} Rd1 {[%emt 0:00:21]} 37. d7 {[%emt 0:00:04]} Kf8 {[%emt 0:00:12]} 38. Rb7 {[%emt 0:00:56]} Ke7 {[%emt 0:00:10]} 39. d8=Q+ {[%emt 0:01:03]} Kxd8 {[%emt 0:00:09]} 40. Rxb6 {[%emt 0:00:02]} Ke7 {[%emt 0:00:10]} 41. h3 {[%emt 0:30:58]} Kf6 {[%emt 0:31:01]} 42. Rb2 {[%emt 0:00:00]} Ra1 {[%emt 0:00:00]} 43. Kg3 {[%emt 0:00:00]} Ra3 {[%emt 0:00:00]} 44. Rf2+ {[%emt 0:00:00]} Kg7 {[%emt 0:00:00]} 45. Kf3 {[%emt 0:00:00]} Ra4 {[%emt 0:00:00]} 46. Rd2 {[%emt 0:00:00]} Kf6 {[%emt 0:00:00]} 47. Rd4 {[%emt 0:00:00]} Ra3 {[%emt 0:00:00]} 48. Ke4 {[%emt 0:01:32]} 1/2-1/2

[Event "FIDE WSTC Open 65 2025"]
[Site "Prague"]
[Date "2025.02.18"]
[Round "2.39"]
[White "Groh, Jiri"]
[Black "Vrana, Frantisek"]
[Result "0-1"]
[Annotator "NA"]
[ECO "E67"]
[WhiteElo "1989"]
[BlackElo "2115"]
[PlyCount "36"]
[EventDate "2025.02.17"]
[EventType "team-tourn"]
[EventCountry "CZE"]
[SourceTitle "playchess.com"]
[Source "ChessBase"]
[SourceQuality "1"]
[TimeControl "40/5400+30:1800+30"]

1. Nf3 {[%emt 0:00:16]} Nf6 {[%emt 0:00:25]} 2. c4 {[%emt 0:00:29]} d6 {[%emt 0:00:46]} 3. g3 {[%emt 0:00:10]} g6 {[%emt 0:00:24]} 4. Bg2 {[%emt 0:00:09]} Bg7 {[%emt 0:00:02]} 5. O-O {[%emt 0:00:23]} O-O {[%emt 0:00:06]} 6. Nc3 {[%emt 0:00:04]} e5 {[%emt 0:02:08]} 7. d4 {[%emt 0:00:22]} Nbd7 {[%emt 0:01:48]} 8. b3 {[%emt 0:01:53]} a5 {[%emt 0:02:57]} 9. Bb2 {[%emt 0:00:50]} c6 {[%emt 0:03:49]} 10. dxe5 {[%emt 0:04:30]} dxe5 {[%emt 0:00:26]} 11. Qd2 {[%emt 0:01:48]} Re8 {[%emt 0:06:47]} 12. e3 {[%emt 0:05:31]} Qc7 {[%emt 0:00:45]} 13. Rac1 {[%emt 0:03:18]} Nc5 {[%emt 0:01:01]} 14. Rcd1 {[%emt 0:20:32]} Bf5 {[%emt 0:14:37]} 15. Qd6 {[%emt 0:01:02]} Qb6 {[%emt 0:01:09]} 16. Nd5 {[%emt 0:03:56]} Nxd5 {[%emt 0:00:25]} 17. Rxd5 {[%emt 0:02:24]} Ne4 {[%emt 0:00:34]} 18. Rb5 {[%emt 0:09:07]} Qxb5 {[%emt 0:01:05]} 0-1

[Event "FIDE WSTC Open 65 2025"]
[Site "Prague"]
[Date "2025.02.18"]
[Round "2.40"]
[White "Cesal, Jaroslav"]
[Black "Slechta, Karel"]
[Result "1-0"]
[Annotator "NA"]
[ECO "D20"]
[WhiteElo "2049"]
[BlackElo "1874"]
[PlyCount "101"]
[EventDate "2025.02.17"]
[EventType "team-tourn"]
[EventCountry "CZE"]
[SourceTitle "playchess.com"]
[Source "ChessBase"]
[SourceQuality "1"]
[TimeControl "40/5400+30:1800+30"]

1. d4 {[%emt 0:00:03]} d5 {[%emt 0:00:08]} 2. c4 {[%emt 0:00:05]} dxc4 {[%emt 0:00:07]} 3. Nc3 {[%emt 0:00:08]} e5 {[%emt 0:03:31]} 4. d5 {[%emt 0:00:59]} c6 {[%emt 0:04:30]} 5. e4 {[%emt 0:02:01]} Nf6 {[%emt 0:01:59]} 6. Nf3 {[%emt 0:10:06]} Bd6 {[%emt 0:06:46]} 7. Bxc4 {[%emt 0:03:22]} h6 {[%emt 0:21:50]} 8. O-O {[%emt 0:02:21]} O-O {[%emt 0:01:20]} 9. h3 {[%emt 0:09:10]} b5 {[%emt 0:05:09]} 10. Bb3 {[%emt 0:03:18]} b4 {[%emt 0:12:09]} 11. Na4 {[%emt 0:00:09]} c5 {[%emt 0:05:04]} 12. Qc2 {[%emt 0:02:36]} Ba6 {[%emt 0:00:38]} 13. Bc4 {[%emt 0:02:01]} Qa5 {[%emt 0:01:13]} 14. Bxa6 {[%emt 0:02:54]} Nxa6 {[%emt 0:01:18]} 15. b3 {[%emt 0:00:58]} Nd7 {[%emt 0:04:08]} 16. Nb2 {[%emt 0:01:50]} Nc7 {[%emt 0:01:29]} 17. Nc4 {[%emt 0:02:27]} Qa6 {[%emt 0:01:21]} 18. Bb2 {[%emt 0:00:10]} Nb5 {[%emt 0:04:53]} 19. Nfxe5 {[%emt 0:05:58]} Nxe5 {[%emt 0:01:57]} 20. Nxe5 {[%emt 0:02:05]} Rfe8 {[%emt 0:03:58]} 21. Nc4 {[%emt 0:04:17]} Bc7 {[%emt 0:01:44]} 22. Rfe1 {[%emt 0:06:52]} Qg6 {[%emt 0:00:45]} 23. Rad1 {[%emt 0:04:01]} Rad8 {[%emt 0:02:45]} 24. Qd3 {[%emt 0:02:30]} a6 {[%emt 0:03:01]} 25. e5 {[%emt 0:02:10]} Qxd3 {[%emt 0:03:11]} 26. Rxd3 {[%emt 0:00:07]} Nd4 {[%emt 0:00:18]} 27. Rxd4 {[%emt 0:07:00]} cxd4 {[%emt 0:00:21]} 28. d6 {[%emt 0:01:19]} Bxd6 {[%emt 0:00:26]} 29. Bxd4 {[%emt 0:00:58]} Bc7 {[%emt 0:00:19]} 30. Bc5 {[%emt 0:04:19]} a5 {[%emt 0:00:29]} 31. f4 {[%emt 0:01:47]} Rd5 {[%emt 0:01:07]} 32. Bf2 {[%emt 0:00:49]} g6 {[%emt 0:04:38]} 33. Re2 {[%emt 0:02:28]} Kg7 {[%emt 0:00:27]} 34. Rc2 {[%emt 0:01:08]} g5 {[%emt 0:02:10]} 35. g3 {[%emt 0:01:39]} gxf4 {[%emt 0:00:08]} 36. gxf4 {[%emt 0:00:07]} Rd7 {[%emt 0:00:29]} 37. Ne3 {[%emt 0:00:56]} Ra8 {[%emt 0:00:48]} 38. Rc6 {[%emt 0:00:58]} a4 {[%emt 0:00:22]} 39. Nf5+ {[%emt 0:00:42]} Kf8 {[%emt 0:00:45]} 40. Rxh6 {[%emt 0:01:31]} Kg8 {[%emt 0:01:09]} 41. Bh4 {[%emt 0:41:23]} Bd8 {[%emt 0:30:19]} 42. Bf6 {[%emt 0:00:17]} Bxf6 {[%emt 0:00:52]} 43. exf6 {[%emt 0:00:08]} axb3 {[%emt 0:00:00]} 44. axb3 {[%emt 0:00:00]} Re8 {[%emt 0:00:00]} 45. Rh5 {[%emt 0:04:52]} Rd1+ {[%emt 0:00:00]} 46. Kf2 {[%emt 0:00:00]} Rd2+ {[%emt 0:00:00]} 47. Kg3 {[%emt 0:00:00]} Rde2 {[%emt 0:00:00]} 48. Kf3 {[%emt 0:00:00]} R2e6 {[%emt 0:00:00]} 49. Ne7+ {[%emt 0:00:00]} R8xe7 {[%emt 0:00:00]} 50. fxe7 {[%emt 0:00:00]} Rxe7 {[%emt 0:00:00]} 51. Rb5 {[%emt 0:00:00]} 1-0

[Event "FIDE WSTC Open 65 2025"]
[Site "Prague"]
[Date "2025.02.18"]
[Round "2.41"]
[White "Heinig, Wolfram"]
[Black "Chubar, Vladimir"]
[Result "1-0"]
[Annotator "ChessBase"]
[ECO "A41"]
[WhiteElo "2204"]
[BlackElo "1885"]
[PlyCount "75"]
[EventDate "2025.02.17"]
[EventType "team-tourn"]
[EventCountry "CZE"]
[SourceTitle "playchess.com"]
[Source "ChessBase"]
[SourceQuality "1"]
[TimeControl "40/5400+30:1800+30"]

1. d4 {[%emt 0:00:07]} d6 {[%emt 0:00:12]} 2. Nf3 {[%emt 0:00:14]} Bg4 {[%emt 0:01:17]} 3. Nbd2 {[%emt 0:00:51]} c6 {[%emt 0:00:38]} 4. h3 {[%emt 0:01:04]} Bxf3 {[%emt 0:01:43]} 5. Nxf3 {[%emt 0:00:10]} Nf6 {[%emt 0:00:55]} 6. c3 {[%emt 0:01:32]} g6 {[%emt 0:02:06]} 7. Qc2 {[%emt 0:01:53]} Bg7 {[%emt 0:02:48]} 8. e4 {[%emt 0:05:18]} Nbd7 {[%emt 0:01:32]} 9. Bd3 {[%emt 0:04:13]} O-O {[%emt 0:02:15]} 10. O-O {[%emt 0:00:11]} e5 {[%emt 0:01:57]} 11. Re1 {[%emt 0:02:01]} Qc7 {[%emt 0:02:46]} 12. a4 {[%emt 0:02:30]} Rfe8 {[%emt 0:03:46]} 13. a5 {[%emt 0:05:13]} a6 {[%emt 0:02:54]} 14. Be3 {[%emt 0:01:37]} c5 {[%emt 0:03:42]} 15. dxe5 {[%emt 0:03:23]} Nxe5 {[%emt 0:05:03]} 16. Nxe5 {[%emt 0:02:57]} dxe5 {[%emt 0:01:21]} 17. Bc4 {[%emt 0:03:12]} h6 {[%emt 0:05:32]} 18. f3 {[%emt 0:08:22]} Nh5 {[%emt 0:08:20]} 19. Red1 {[%emt 0:02:52]} Rad8 {[%emt 0:01:35]} 20. Rxd8 {[%emt 0:10:05]} Rxd8 {[%emt 0:01:21]} 21. Bd5 {[%emt 0:01:13]} Nf4 {[%emt 0:05:03]} 22. c4 {[%emt 0:05:33]} Ne6 {[%emt 0:05:42]} 23. Bxe6 {[%emt 0:10:54]} fxe6 {[%emt 0:00:13]} 24. b4 {[%emt 0:00:58]} cxb4 {[%emt 0:10:47]} 25. Bb6 {[%emt 0:01:39]} Qd7 {[%emt 0:00:23]} 26. Rb1 {[%emt 0:03:06]} Bf8 {[%emt 0:05:25]} 27. Bxd8 {[%emt 0:05:03]} Qxd8 {[%emt 0:00:14]} 28. Qa4 {[%emt 0:01:23]} Bc5+ {[%emt 0:00:33]} 29. Kh1 {[%emt 0:00:46]} Qe7 {[%emt 0:03:49]} 30. Rd1 {[%emt 0:00:49]} Bd4 {[%emt 0:01:45]} 31. f4 {[%emt 0:01:08]} Bc5 {[%emt 0:07:57]} 32. fxe5 {[%emt 0:02:51]} Qf7 {[%emt 0:04:40]} 33. Qd7 {[%emt 0:01:14]} Qf2 {[%emt 0:02:37]} 34. Qxe6+ {[%emt 0:01:20]} Kg7 {[%emt 0:02:45]} 35. Rd7+ {[%emt 0:00:32]} Kh8 {[%emt 0:00:25]} 36. Qe8+ {[%emt 0:00:58]} Bf8 {[%emt 0:00:11]} 37. Rf7 {[%emt 0:00:27]} Qe1+ {[%emt 0:02:42]} 38. Kh2 {[%emt 0:00:07]} 1-0